bitfinex/quotes_BTCUSD_20230905
["timestamp","ask_amount","ask_price","bid_price","bid_amount"]
[1693876748119,2.55102999,25775.0,25774.0,0.004]
[1693876748346,2.73238609,25775.0,25774.0,0.004]
[1693876748550,2.73220609,25775.0,25774.0,0.004]
[1693876748753,3.40159595,25775.0,25774.0,0.004]
[1693876749075,3.53329595,25775.0,25774.0,0.004]
[1693876749308,3.53389595,25775.0,25774.0,0.004]
[1693876749509,3.53317595,25775.0,25774.0,0.004]
[1693876749661,3.40159595,25775.0,25774.0,0.004]
[1693876749863,3.40039595,25775.0,25774.0,0.004]
[1693876750074,3.4964242,25775.0,25774.0,0.004]
[1693876750310,3.4961242,25775.0,25774.0,0.004]
[1693876750515,3.4923442,25775.0,25774.0,0.004]
[1693876750689,3.4922242,25775.0,25774.0,0.004]
[1693876750871,3.4906042,25775.0,25774.0,0.004]
[1693876751069,3.39211595,25775.0,25774.0,0.004]
[1693876751267,3.50036926,25775.0,25774.0,0.004]
[1693876751468,3.50042926,25775.0,25774.0,0.004]
[1693876751680,3.50024926,25775.0,25774.0,0.004]
[1693876751883,3.49934926,25775.0,25774.0,0.004]
[1693876752085,3.49910926,25775.0,25774.0,0.004]
[1693876752286,3.49928926,25775.0,25774.0,0.004]
[1693876752497,3.49778926,25775.0,25774.0,0.004]
[1693876752698,3.49826926,25775.0,25774.0,0.004]
[1693876752951,2.72016426,25775.0,25774.0,0.004]
[1693876753156,2.71752426,25775.0,25774.0,0.004]
[1693876753360,2.71644426,25775.0,25774.0,0.004]
[1693876753553,2.71626426,25775.0,25774.0,0.004]
[1693876753756,2.71602426,25775.0,25774.0,0.004]
[1693876753985,2.71440426,25775.0,25774.0,0.004]
[1693876754179,2.71416426,25775.0,25774.0,0.004]
[1693876754373,2.71356426,25775.0,25774.0,0.004]
[1693876754579,2.71272426,25775.0,25774.0,0.004]
[1693876754964,2.71260426,25775.0,25774.0,0.004]
[1693876755165,2.71314426,25775.0,25774.0,0.004]
[1693876755418,2.71116426,25775.0,25774.0,0.004]
[1693876755621,2.71164426,25775.0,25774.0,0.004]
[1693876755824,2.71086426,25775.0,25774.0,0.004]
[1693876755998,2.71128426,25775.0,25774.0,0.004]
[1693876756194,2.71140426,25775.0,25774.0,0.004]
[1693876756354,2.71128426,25775.0,25774.0,0.004]
[1693876756558,2.71092426,25775.0,25774.0,0.004]
[1693876756805,2.71080426,25775.0,25774.0,0.004]
[1693876757005,2.71074426,25775.0,25774.0,0.004]
[1693876757199,2.71062426,25775.0,25774.0,0.004]
[1693876757355,2.71050426,25775.0,25774.0,0.004]
[1693876757556,2.71038426,25775.0,25774.0,0.004]
[1693876757756,2.71002426,25775.0,25774.0,0.004]
[1693876758162,2.71038426,25775.0,25774.0,0.004]
[1693876758385,2.71026426,25775.0,25774.0,0.004]
[1693876758683,2.70972426,25775.0,25774.0,0.004]
[1693876759088,2.70918426,25775.0,25774.0,0.004]
[1693876759289,2.70930426,25775.0,25774.0,0.004]
[1693876759491,2.70966426,25775.0,25774.0,0.004]
[1693876759687,2.70942426,25775.0,25774.0,0.004]
[1693876759890,2.70948426,25775.0,25774.0,0.004]
[1693876760092,2.71008426,25775.0,25774.0,0.004]
[1693876760323,2.70990426,25775.0,25774.0,0.004]
[1693876760510,2.70918426,25775.0,25774.0,0.004]
[1693876760710,2.70960426,25775.0,25774.0,0.004]
[1693876760909,2.70948426,25775.0,25774.0,0.004]
[1693876761272,2.70936426,25775.0,25774.0,0.004]
[1693876761387,2.70834426,25775.0,25774.0,0.004]
[1693876761583,2.6406233,25775.0,25774.0,0.004]
[1693876761817,2.6356433,25775.0,25774.0,0.004]
[1693876762010,2.6355833,25775.0,25774.0,0.004]
[1693876762379,2.6345033,25775.0,25774.0,0.004]
[1693876762580,2.6357033,25775.0,25774.0,0.004]
[1693876762717,2.6354633,25775.0,25774.0,0.004]
[1693876763069,2.6347433,25775.0,25774.0,0.004]
[1693876763264,2.6348033,25775.0,25774.0,0.004]
[1693876763477,3.02324857,25775.0,25774.0,0.004]
[1693876763606,3.02648857,25775.0,25774.0,0.004]
[1693876763817,3.02642857,25775.0,25774.0,0.004]
[1693876764054,3.02588857,25775.0,25774.0,0.004]
[1693876764264,3.02570857,25775.0,25774.0,0.004]
[1693876764502,3.02564857,25775.0,25774.0,0.004]
[1693876764705,3.02558857,25775.0,25774.0,0.004]
[1693876764905,3.02528857,25775.0,25774.0,0.004]
[1693876765089,3.02522857,25775.0,25774.0,0.004]
[1693876765443,3.02516857,25775.0,25774.0,0.004]
[1693876765645,3.02540857,25775.0,25774.0,0.004]
[1693876765845,3.02522857,25775.0,25774.0,0.004]
[1693876766051,3.02492857,25775.0,25774.0,0.004]
[1693876766249,3.02486857,25775.0,25774.0,0.004]
[1693876766458,3.02480857,25775.0,25774.0,0.004]
[1693876766683,3.02474857,25775.0,25774.0,0.004]
[1693876766885,3.02498857,25775.0,25774.0,0.004]
[1693876767086,3.02492857,25775.0,25774.0,0.004]
[1693876767286,3.02462857,25775.0,25774.0,0.004]
[1693876767705,3.02456857,25775.0,25774.0,0.004]
[1693876767909,3.02714857,25775.0,25774.0,0.004]
[1693876768158,3.02702857,25775.0,25774.0,0.004]
[1693876768296,3.02696857,25775.0,25774.0,0.004]
[1693876768482,3.02720857,25775.0,25774.0,0.004]
[1693876768688,3.02672857,25775.0,25774.0,0.004]
[1693876768950,3.02696857,25775.0,25774.0,0.004]
[1693876769564,3.02684857,25775.0,25774.0,0.004]
[1693876769864,3.02648857,25775.0,25774.0,0.004]
[1693876770089,3.02642857,25775.0,25774.0,0.004]
[1693876770281,3.02660857,25775.0,25774.0,0.004]
[1693876770476,3.02654857,25775.0,25774.0,0.004]
[1693876770646,3.02606857,25775.0,25774.0,0.004]
[1693876770811,3.02630857,25775.0,25774.0,0.004]
[1693876771014,3.02594857,25775.0,25774.0,0.004]
[1693876771220,3.10963668,25775.0,25774.0,0.004]
[1693876771459,3.11041668,25775.0,25774.0,0.004]
[1693876771916,3.11035668,25775.0,25774.0,0.004]
[1693876772063,3.11023668,25775.0,25774.0,0.004]
[1693876772402,3.10987668,25775.0,25774.0,0.004]
[1693876772714,3.10981668,25775.0,25774.0,0.004]
[1693876772942,3.10969668,25775.0,25774.0,0.004]
[1693876773199,3.11053668,25775.0,25774.0,0.004]
[1693876773405,3.11101668,25775.0,25774.0,0.004]
[1693876773605,3.11017668,25775.0,25774.0,0.004]
[1693876773793,3.11011668,25775.0,25774.0,0.004]
[1693876773969,3.10987668,25775.0,25774.0,0.004]
[1693876774171,3.11011668,25775.0,25774.0,0.004]
[1693876774388,3.10981668,25775.0,25774.0,0.004]
[1693876774586,3.10975668,25775.0,25774.0,0.004]
[1693876774783,3.10969668,25775.0,25774.0,0.004]
[1693876775198,3.10945668,25775.0,25774.0,0.004]
[1693876775695,3.10999668,25775.0,25774.0,0.004]
[1693876775926,3.11089668,25775.0,25774.0,0.004]
[1693876776127,3.11068887,25775.0,25774.0,0.004]
[1693876776288,3.11062887,25775.0,25774.0,0.004]
[1693876776488,3.11056887,25775.0,25774.0,0.004]
[1693876776718,3.11044887,25775.0,25774.0,0.004]
[1693876776918,3.38896786,25775.0,25774.0,0.004]
[1693876777262,3.11026887,25775.0,25774.0,0.004]
[1693876777465,3.38914786,25775.0,25774.0,0.004]
[1693876777872,3.38908786,25775.0,25774.0,0.004]
[1693876778087,3.38902786,25775.0,25774.0,0.004]
[1693876778300,3.38896786,25775.0,25774.0,0.004]
[1693876778496,3.38764786,25775.0,25774.0,0.004]
[1693876778749,3.38758786,25775.0,25774.0,0.004]
[1693876779565,3.38752786,25775.0,25774.0,0.004]
[1693876779781,3.38776786,25775.0,25774.0,0.004]
[1693876779996,3.38764786,25775.0,25774.0,0.004]
[1693876780198,3.38770786,25775.0,25774.0,0.004]
[1693876780353,3.38554786,25775.0,25774.0,0.004]
[1693876780637,3.38518786,25775.0,25774.0,0.004]
[1693876780838,3.38560786,25775.0,25774.0,0.004]
[1693876781127,3.38494786,25775.0,25774.0,0.004]
[1693876781331,3.38596786,25775.0,25774.0,0.004]
[1693876781481,3.38578786,25775.0,25774.0,0.004]
[1693876781689,3.38536786,25775.0,25774.0,0.004]
[1693876781893,3.38572786,25775.0,25774.0,0.004]
[1693876782295,3.38566786,25775.0,25774.0,0.004]
[1693876782503,3.38536786,25775.0,25774.0,0.004]
[1693876782923,3.38530786,25775.0,25774.0,0.004]
[1693876783359,3.38560786,25775.0,25774.0,0.004]
[1693876783610,3.38524786,25775.0,25774.0,0.004]
[1693876783785,3.38464786,25775.0,25774.0,0.004]
[1693876784035,3.38488786,25775.0,25774.0,0.004]
[1693876784630,3.38452786,25775.0,25774.0,0.004]
[1693876784993,3.38482786,25775.0,25774.0,0.004]
[1693876785397,3.38476786,25775.0,25774.0,0.004]
[1693876785603,3.38530786,25775.0,25774.0,0.004]
[1693876785831,3.38638786,25775.0,25774.0,0.004]
[1693876786243,3.38644786,25775.0,25774.0,0.004]
[1693876786443,3.38638786,25775.0,25774.0,0.004]
[1693876786620,3.38608786,25775.0,25774.0,0.004]
[1693876786827,3.38530786,25775.0,25774.0,0.004]
[1693876787372,3.38518786,25775.0,25774.0,0.004]
[1693876787669,3.38626786,25775.0,25774.0,0.004]
[1693876787908,3.30215975,25775.0,25774.0,0.004]
[1693876788114,3.4007998,25775.0,25774.0,0.004]
[1693876788295,3.4007398,25775.0,25774.0,0.004]
[1693876788598,3.4006198,25775.0,25774.0,0.004]
[1693876788799,3.4005598,25775.0,25774.0,0.004]
[1693876789360,3.4004998,25775.0,25774.0,0.004]
[1693876789953,3.4002598,25775.0,25774.0,0.004]
[1693876790147,3.00497453,25775.0,25774.0,0.004]
[1693876790325,3.00467453,25775.0,25774.0,0.004]
[1693876790526,3.00533453,25775.0,25774.0,0.004]
[1693876790753,3.00677453,25775.0,25774.0,0.004]
[1693876790887,3.00869453,25775.0,25774.0,0.004]
[1693876791091,3.01055453,25775.0,25774.0,0.004]
[1693876791289,3.01331453,25775.0,25774.0,0.004]
[1693876791493,3.01301453,25775.0,25774.0,0.004]
[1693876791699,3.01295453,25775.0,25774.0,0.004]
[1693876792319,3.01283453,25775.0,25774.0,0.004]
[1693876792524,3.01295453,25775.0,25774.0,0.004]
[1693876792727,3.01277453,25775.0,25774.0,0.004]
[1693876792901,3.01295453,25775.0,25774.0,0.004]
[1693876793109,3.01289453,25775.0,25774.0,0.004]
[1693876793502,3.61856784,25775.0,25774.0,0.004]
[1693876793711,3.61922784,25775.0,25774.0,0.004]
[1693876793890,3.61910784,25775.0,25774.0,0.004]
[1693876794308,3.69205913,25775.0,25774.0,0.004]
[1693876794900,3.69193913,25775.0,25774.0,0.004]
[1693876795104,3.69121913,25775.0,25774.0,0.004]
[1693876795303,3.69091913,25775.0,25774.0,0.004]
[1693876795496,3.69055913,25775.0,25774.0,0.004]
[1693876795712,3.69043913,25775.0,25774.0,0.004]
[1693876796141,3.69079913,25775.0,25774.0,0.004]
[1693876796347,3.69073913,25775.0,25774.0,0.004]
[1693876796571,3.69055913,25775.0,25774.0,0.004]
[1693876796795,3.69019913,25775.0,25774.0,0.004]
[1693876797175,3.68917913,25775.0,25774.0,0.004]
[1693876797383,3.68899913,25775.0,25774.0,0.004]
[1693876797585,3.68965913,25775.0,25774.0,0.004]
[1693876798248,3.68935913,25775.0,25774.0,0.004]
[1693876798668,3.68911913,25775.0,25774.0,0.004]
[1693876798825,3.69523913,25775.0,25774.0,0.004]
[1693876799031,3.69595913,25775.0,25774.0,0.004]
[1693876799364,3.6788191,25775.0,25774.0,0.004]
[1693876799567,3.6783391,25775.0,25774.0,0.004]
[1693876799779,3.6780391,25775.0,25774.0,0.004]
[1693876799979,3.43560431,25775.0,25774.0,0.004]
[1693876800180,3.60442689,25775.0,25774.0,0.004]
[1693876800382,3.36217302,25775.0,25774.0,0.004]
[1693876800514,3.36211302,25775.0,25774.0,0.004]
[1693876800725,3.36277302,25775.0,25774.0,0.004]
[1693876800923,3.36241302,25775.0,25774.0,0.004]
[1693876801148,3.36265302,25775.0,25774.0,0.004]
[1693876801372,3.36217302,25775.0,25774.0,0.004]
[1693876801566,3.6048469,25775.0,25774.0,0.004]
[1693876801772,3.6051469,25775.0,25774.0,0.004]
[1693876802093,3.36241302,25775.0,25774.0,0.004]
[1693876802320,3.74911829,25775.0,25774.0,0.004]
[1693876802491,3.74917829,25775.0,25774.0,0.004]
[1693876802690,3.74869829,25775.0,25774.0,0.004]
[1693876802898,3.74785829,25775.0,25774.0,0.004]
[1693876803067,3.74791829,25775.0,25774.0,0.004]
[1693876803487,3.74767829,25775.0,25774.0,0.004]
[1693876803683,3.99293285,25775.0,25774.0,0.004]
[1693876803888,3.99263285,25775.0,25774.0,0.004]
[1693876804088,3.99287285,25775.0,25774.0,0.004]
[1693876804286,3.99299285,25775.0,25774.0,0.004]
[1693876804522,3.99191285,25775.0,25774.0,0.004]
[1693876804667,3.99047285,25775.0,25774.0,0.004]
[1693876804915,3.98921285,25775.0,25774.0,0.004]
[1693876805215,3.98843285,25775.0,25774.0,0.004]
[1693876805416,3.98879285,25775.0,25774.0,0.004]
[1693876805592,3.98843285,25775.0,25774.0,0.004]
[1693876805802,3.98849285,25775.0,25774.0,0.004]
[1693876806020,3.98861285,25775.0,25774.0,0.004]
[1693876806418,3.98903285,25775.0,25774.0,0.004]
[1693876806643,3.98909285,25775.0,25774.0,0.004]
[1693876806821,3.98867285,25775.0,25774.0,0.004]
[1693876807225,3.99269285,25775.0,25774.0,0.004]
[1693876807451,3.99227285,25775.0,25774.0,0.004]
[1693876808105,3.99251285,25775.0,25774.0,0.004]
[1693876808304,3.99233285,25775.0,25774.0,0.004]
[1693876808568,3.99281285,25775.0,25774.0,0.004]
[1693876808782,3.99275285,25775.0,25774.0,0.004]
[1693876808988,3.99263285,25775.0,25774.0,0.004]
[1693876809186,3.99257285,25775.0,25774.0,0.004]
[1693876809598,3.99263285,25775.0,25774.0,0.004]
[1693876809812,3.99209285,25775.0,25774.0,0.004]
[1693876810035,3.99101285,25775.0,25774.0,0.004]
[1693876810254,3.99149285,25775.0,25774.0,0.004]
[1693876810456,3.99143285,25775.0,25774.0,0.004]
[1693876810657,3.99095285,25775.0,25774.0,0.004]
[1693876811347,3.99101285,25775.0,25774.0,0.004]
[1693876811494,3.99131285,25775.0,25774.0,0.004]
[1693876811906,3.99083285,25775.0,25774.0,0.004]
[1693876812533,3.99161285,25775.0,25774.0,0.004]
[1693876812774,3.74917829,25775.0,25774.0,0.004]
[1693876813054,3.74953829,25775.0,25774.0,0.004]
[1693876813396,3.74905829,25775.0,25774.0,0.004]
[1693876813810,3.74791829,25775.0,25774.0,0.004]
[1693876814602,3.74779829,25775.0,25774.0,0.004]
[1693876815196,3.74875829,25775.0,25774.0,0.004]
[1693876815397,3.74881829,25775.0,25774.0,0.004]
[1693876815572,3.74839829,25775.0,25774.0,0.004]
[1693876815777,4.02739247,25775.0,25774.0,0.004]
[1693876816156,3.74839829,25775.0,25774.0,0.004]
[1693876816354,4.02713617,25775.0,25774.0,0.004]
[1693876816541,4.02695617,25775.0,25774.0,0.004]
[1693876817032,4.02791617,25775.0,25774.0,0.004]
[1693876817458,4.02785617,25775.0,25774.0,0.004]
[1693876818078,4.02881617,25775.0,25774.0,0.004]
[1693876818661,4.02833617,25775.0,25774.0,0.004]
[1693876818836,4.02803617,25775.0,25774.0,0.004]
[1693876819036,4.02713617,25775.0,25774.0,0.004]
[1693876819238,4.02701617,25775.0,25774.0,0.004]
[1693876819467,3.74767829,25775.0,25774.0,0.004]
[1693876819643,3.74815829,25775.0,25774.0,0.004]
[1693876820044,4.02713446,25775.0,25774.0,0.004]
[1693876820449,4.02659446,25775.0,25774.0,0.004]
[1693876820755,4.02791446,25775.0,25774.0,0.004]
[1693876820986,4.02785446,25775.0,25774.0,0.004]
[1693876821184,4.02779446,25775.0,25774.0,0.004]
[1693876821671,3.23288599,25775.0,25774.0,0.004]
[1693876821873,2.88707163,25775.0,25774.0,0.004]
[1693876822110,2.20019159,25775.0,25774.0,0.004]
[1693876822303,2.19719159,25775.0,25774.0,0.004]
[1693876822531,2.19833159,25775.0,25774.0,0.004]
[1693876822733,2.19851159,25775.0,25774.0,0.004]
[1693876822958,2.19863159,25775.0,25774.0,0.004]
[1693876823490,2.19833159,25775.0,25774.0,0.004]
[1693876823722,2.19827159,25775.0,25774.0,0.004]
[1693876824119,2.19821159,25775.0,25774.0,0.004]
[1693876824259,2.19881159,25775.0,25774.0,0.004]
[1693876824455,1.42292659,25775.0,25774.0,0.004]
[1693876824656,1.24853331,25775.0,25774.0,1.167962]
[1693876824860,0.96955714,25775.0,25774.0,1.749943]
[1693876825483,0.87779218,25775.0,25774.0,1.749943]
[1693876830276,0.87779218,25775.0,25774.0,1.167962]
[1693876831857,0.9867168,25775.0,25774.0,1.167962]
[1693876832413,1.0536768,25775.0,25774.0,1.167962]
[1693876832625,1.0519368,25775.0,25774.0,1.167962]
[1693876832827,1.0519968,25775.0,25774.0,1.167962]
[1693876833232,0.9867168,25775.0,25774.0,1.167962]
[1693876833487,1.0525368,25775.0,25774.0,1.167962]
[1693876833616,1.0521168,25775.0,25774.0,1.167962]
[1693876833969,1.0522968,25775.0,25774.0,1.167962]
[1693876834115,0.9867168,25775.0,25774.0,1.167962]
[1693876834515,1.0531968,25775.0,25774.0,1.167962]
[1693876834741,1.0545168,25775.0,25774.0,1.167962]
[1693876834975,1.0531968,25775.0,25774.0,1.167962]
[1693876835210,1.0521168,25775.0,25774.0,1.167962]
[1693876835390,0.9867168,25775.0,25774.0,1.167962]
[1693876835600,1.0519368,25775.0,25774.0,1.167962]
[1693876835725,1.0649568,25775.0,25774.0,0.004]
[1693876835944,1.93050315,25775.0,25774.0,0.004]
[1693876836176,2.70974815,25775.0,25774.0,0.004]
[1693876836382,2.71430815,25775.0,25774.0,0.004]
[1693876836584,2.71406815,25775.0,25774.0,0.004]
[1693876836796,2.71394815,25775.0,25774.0,0.004]
[1693876836998,2.71388815,25775.0,25774.0,0.004]
[1693876837223,2.71382815,25775.0,25774.0,0.004]
[1693876837419,2.71070815,25775.0,25774.0,0.004]
[1693876837717,2.71010815,25775.0,25774.0,0.004]
[1693876837913,2.71070815,25775.0,25774.0,0.004]
[1693876838101,2.70956815,25775.0,25774.0,0.004]
[1693876838296,2.70470815,25775.0,25774.0,0.004]
[1693876838503,2.70398815,25775.0,25774.0,0.004]
[1693876838697,2.70404815,25775.0,25774.0,0.004]
[1693876839068,2.70374815,25775.0,25774.0,0.004]
[1693876839361,2.70380815,25775.0,25774.0,0.004]
[1693876839799,2.70362815,25775.0,25774.0,0.004]
[1693876840016,2.70368815,25775.0,25774.0,0.004]
[1693876840195,2.6198468,25775.0,25774.0,0.004]
[1693876840406,1.93141804,25775.0,25774.0,0.004]
[1693876840639,1.93117804,25775.0,25774.0,0.004]
[1693876840847,1.93153804,25775.0,25774.0,0.004]
[1693876841024,1.93195804,25775.0,25774.0,0.004]
[1693876841275,1.93231804,25775.0,25774.0,0.004]
[1693876841478,1.92348443,25775.0,25774.0,0.004]
[1693876841671,1.92612443,25775.0,25774.0,0.004]
[1693876841897,1.92618443,25775.0,25774.0,0.004]
[1693876842079,1.92624443,25775.0,25774.0,0.004]
[1693876842415,1.92528443,25775.0,25774.0,0.004]
[1693876842793,1.92588443,25775.0,25774.0,0.004]
[1693876843009,1.92630443,25775.0,25774.0,0.004]
[1693876843209,1.92810443,25775.0,25774.0,0.004]
[1693876843416,1.93020443,25775.0,25774.0,0.004]
[1693876843563,1.92852443,25775.0,25774.0,0.004]
[1693876843767,1.92978443,25775.0,25774.0,0.004]
[1693876844018,1.92888443,25775.0,25774.0,0.004]
[1693876844217,1.92912443,25775.0,25774.0,0.004]
[1693876844597,1.92948443,25775.0,25774.0,0.004]
[1693876844796,1.92954443,25775.0,25774.0,0.004]
[1693876845077,1.93008443,25775.0,25774.0,0.004]
[1693876845322,1.92846443,25775.0,25774.0,0.004]
[1693876845478,1.92738443,25775.0,25774.0,0.004]
[1693876845681,1.92822443,25775.0,25774.0,0.004]
[1693876845882,1.92828443,25775.0,25774.0,0.004]
[1693876846163,1.92906443,25775.0,25774.0,0.004]
[1693876846345,1.92924443,25775.0,25774.0,0.004]
[1693876846571,1.92948443,25775.0,25774.0,0.004]
[1693876846753,1.92954443,25775.0,25774.0,0.004]
[1693876846899,1.92948443,25775.0,25774.0,0.004]
[1693876847101,1.92936443,25775.0,25774.0,0.004]
[1693876847298,1.92942443,25775.0,25774.0,0.004]
[1693876847542,1.92948443,25775.0,25774.0,0.004]
[1693876847746,1.92942443,25775.0,25774.0,0.004]
[1693876847954,1.92924443,25775.0,25774.0,0.004]
[1693876848159,1.93260443,25775.0,25774.0,0.004]
[1693876848357,2.70842943,25775.0,25774.0,0.004]
[1693876848608,2.70878943,25775.0,25774.0,0.004]
[1693876848783,2.70794943,25775.0,25774.0,0.004]
[1693876848991,2.70788943,25775.0,25774.0,0.004]
[1693876849187,2.70782943,25775.0,25774.0,0.004]
[1693876849603,2.70968943,25775.0,25774.0,0.004]
[1693876849847,2.70962943,25775.0,25774.0,0.004]
[1693876850259,2.70956943,25775.0,25774.0,0.004]
[1693876850464,2.70980943,25775.0,25774.0,0.004]
[1693876850664,2.70998943,25775.0,25774.0,0.004]
[1693876850866,2.71076943,25775.0,25774.0,0.004]
[1693876851079,2.70992943,25775.0,25774.0,0.004]
[1693876851303,2.71076943,25775.0,25774.0,0.004]
[1693876851479,2.70986943,25775.0,25774.0,0.004]
[1693876851701,2.70914943,25775.0,25774.0,0.004]
[1693876851911,2.70992943,25775.0,25774.0,0.004]
[1693876852118,2.70986943,25775.0,25774.0,0.004]
[1693876852257,2.70992943,25775.0,25774.0,0.004]
[1693876852457,2.70980943,25775.0,25774.0,0.004]
[1693876852704,2.70968943,25775.0,25774.0,0.004]
[1693876852877,2.61149159,25775.0,25774.0,0.004]
[1693876853082,3.80126186,25775.0,25774.0,0.004]
[1693876853282,3.80156186,25775.0,25774.0,0.004]
[1693876853487,3.80108186,25775.0,25774.0,0.004]
[1693876853679,3.80162186,25775.0,25774.0,0.004]
[1693876853883,3.80096186,25775.0,25774.0,0.004]
[1693876854150,3.79826186,25775.0,25774.0,0.004]
[1693876854351,3.89101319,25775.0,25774.0,0.004]
[1693876854554,3.89041319,25775.0,25774.0,0.004]
[1693876854755,3.88867319,25775.0,25774.0,0.004]
[1693876854913,3.89215319,25775.0,25774.0,0.004]
[1693876855132,3.88951319,25775.0,25774.0,0.004]
[1693876855500,3.88933319,25775.0,25774.0,0.004]
[1693876855705,3.88915319,25775.0,25774.0,0.004]
[1693876855908,3.88909319,25775.0,25774.0,0.004]
[1693876856153,3.88915319,25775.0,25774.0,0.004]
[1693876856573,3.88903319,25775.0,25774.0,0.004]
[1693876856987,3.50220792,25775.0,25774.0,0.004]
[1693876857194,3.50274792,25775.0,25774.0,0.004]
[1693876857404,3.50184792,25775.0,25774.0,0.004]
[1693876857605,3.50454792,25775.0,25774.0,0.004]
[1693876857809,3.50094792,25775.0,25774.0,0.004]
[1693876858014,3.50076792,25775.0,25774.0,0.004]
[1693876858216,3.50052792,25775.0,25774.0,0.004]
[1693876858400,3.70860356,25775.0,25774.0,0.004]
[1693876858604,3.70848356,25775.0,25774.0,0.004]
[1693876858760,3.70896356,25775.0,25774.0,0.004]
[1693876858964,3.70842356,25775.0,25774.0,0.004]
[1693876859149,3.70848356,25775.0,25774.0,0.004]
[1693876859350,3.70836356,25775.0,25774.0,0.004]
[1693876859549,3.71028356,25775.0,25774.0,0.004]
[1693876859767,3.71220356,25775.0,25774.0,0.004]
[1693876859995,3.71160356,25775.0,25774.0,0.004]
[1693876860196,3.71148356,25775.0,25774.0,0.004]
[1693876860400,3.70800356,25775.0,25774.0,0.004]
[1693876860547,3.70920356,25775.0,25774.0,0.004]
[1693876860747,3.70842356,25775.0,25774.0,0.004]
[1693876860946,3.70818356,25775.0,25774.0,0.004]
[1693876861175,3.70794356,25775.0,25774.0,0.004]
[1693876861382,3.70848356,25775.0,25774.0,0.004]
[1693876861632,3.70884356,25775.0,25774.0,0.004]
[1693876861848,3.71118356,25775.0,25774.0,0.004]
[1693876862033,3.71106356,25775.0,25774.0,0.004]
[1693876862572,3.71094356,25775.0,25774.0,0.004]
[1693876862775,3.71088356,25775.0,25774.0,0.004]
[1693876863266,3.61563187,25775.0,25774.0,0.004]
[1693876863610,3.71544821,25775.0,25774.0,0.004]
[1693876863793,3.71460821,25775.0,25774.0,0.004]
[1693876863930,3.71406821,25775.0,25774.0,0.004]
[1693876864510,3.71394821,25775.0,25774.0,0.004]
[1693876864720,3.71388821,25775.0,25774.0,0.004]
[1693876864929,3.71424821,25775.0,25774.0,0.004]
[1693876865100,3.71376821,25775.0,25774.0,0.004]
[1693876865305,3.50425257,25775.0,25774.0,0.004]
[1693876865487,3.50461257,25775.0,25774.0,0.004]
[1693876865689,3.50449257,25775.0,25774.0,0.004]
[1693876865850,3.50443257,25775.0,25774.0,0.004]
[1693876866054,3.50347257,25775.0,25774.0,0.004]
[1693876866249,3.50263257,25775.0,25774.0,0.004]
[1693876866452,3.50233257,25775.0,25774.0,0.004]
[1693876866656,3.50227257,25775.0,25774.0,0.004]
[1693876866936,3.50233257,25775.0,25774.0,0.004]
[1693876867082,3.50287257,25775.0,25774.0,0.004]
[1693876867280,3.50281257,25775.0,25774.0,0.004]
[1693876867711,3.50353257,25775.0,25774.0,0.004]
[1693876868056,3.50299257,25775.0,25774.0,0.004]
[1693876868588,3.50287257,25775.0,25774.0,0.004]
[1693876868774,3.6817924,25775.0,25774.0,0.004]
[1693876868898,3.6818524,25775.0,25774.0,0.004]
[1693876869105,4.06849767,25775.0,25774.0,0.004]
[1693876869345,4.07359767,25775.0,25774.0,0.004]
[1693876869537,4.07347767,25775.0,25774.0,0.004]
[1693876869739,4.07341767,25775.0,25774.0,0.004]
[1693876869940,4.07353767,25775.0,25774.0,0.004]
[1693876870137,4.07347767,25775.0,25774.0,0.004]
[1693876870544,4.07329767,25775.0,25774.0,0.004]
[1693876870820,4.07521767,25775.0,25774.0,0.004]
[1693876871022,4.16367473,25775.0,25774.0,0.004]
[1693876871223,4.16361473,25775.0,25774.0,0.004]
[1693876871469,4.16355473,25775.0,25774.0,0.004]
[1693876871749,4.08283767,25775.0,25774.0,0.004]
[1693876871954,4.08217767,25775.0,25774.0,0.004]
[1693876872091,4.08265767,25775.0,25774.0,0.004]
[1693876872291,4.31952912,25775.0,25774.0,0.004]
[1693876872499,0.01115145,25769.0,25765.0,0.97784363]
[1693876872712,0.01115145,25769.0,25766.0,0.582145]
[1693876872713,0.32535335,25767.0,25766.0,0.582145]
[1693876872921,0.71199862,25767.0,25766.0,1.164292]
[1693876873131,0.52755163,25767.0,25766.0,1.746454]
[1693876874396,0.52755163,25767.0,25766.0,1.177292]
[1693876874612,0.52755163,25767.0,25766.0,1.185292]
[1693876874843,0.4345914,25767.0,25766.0,1.185292]
[1693876875044,0.52755163,25767.0,25766.0,1.185292]
[1693876875664,0.4345914,25767.0,25766.0,1.185292]
[1693876880997,0.4345914,25767.0,25766.0,1.34603357]
[1693876881181,0.4345914,25767.0,25766.0,1.185292]
[1693876881754,0.4345914,25767.0,25766.0,1.88787816]
[1693876883950,0.04794613,25767.0,25766.0,1.88787816]
[1693876884480,0.33388315,25770.0,25766.0,1.88787816]
[1693876884668,0.38664527,25769.0,25768.0,1.746351]
[1693876884905,0.61882692,25770.0,25768.0,1.746351]
[1693876885111,0.61882692,25770.0,25769.0,1.75513055]
[1693876885112,0.38664527,25770.0,25769.0,1.75513055]
[1693876887169,0.38864527,25770.0,25769.0,1.75613055]
[1693876887378,0.38964527,25770.0,25769.0,1.75713055]
[1693876891960,0.38964527,25770.0,25769.0,1.17503655]
[1693876895056,0.48251793,25770.0,25769.0,1.17503655]
[1693876897701,0.48251793,25770.0,25769.0,1.166188]